Workbook

Sheet Instructions

Sheet Meta data_sheet
A1: Ambient Monitoring Station | B1: Details | D1: Ambient Monitoring Results | E1: Details
A2: Location | B2: Will-gai | D2: PM2.5 monitoring start (dd/mm/yyyy hh:mm) | E2: 2024-03-01
A3: Easting | B3: =VLOOKUP($B$2,'Meta data_lookup'!$A$2:$D$5,2,FALSE) -> 231804 | D3: PM2.5 monitoring end | E3: 2024-04-01
A4: Northing | B4: =VLOOKUP($B$2,'Meta data_lookup'!$A$2:$D$5,3,FALSE) -> 6596392 | D4: PM2.5 monitoring period (h) | E4: =(E3-E2)*24 -> 744
A5: Site elevation (m) | B5: =VLOOKUP($B$2,'Meta data_lookup'!$A$2:$D$5,4,FALSE) -> 294 | D5: Number of valid PM2.5 results | E5: =COUNTIF('Raw data_sheet'!G2:G745,"Valid") -> 739
A6: Description of surrounding land use | B6: Agriculture/Mining | D6: Proportion of valid PM2.5 results (%) | E6: =E5/E4 -> 0.9932795699
A7: Typical sources impacting on the site | B7: Agriculture | D7: PM10 monitoring start (dd/mm/yyyy hh:mm) | E7: 2024-03-01
A8: Site compliance with AS/NZS 3580.1.1:2007 | B8: Yes | D8: PM10 monitoring end | E8: 2024-04-01
A9: PM2.5 method compliance with AS/NZS 3580.9.13:2013 | B9: Yes | D9: PM10 monitoring period (h) | E9: =(E8-E7)*24 -> 744
A10: PM2.5 instrument make | B10: Thermo Scientific | D10: Number of valid PM10 results | E10: =COUNTIF('Raw data_sheet'!J2:J745,"Valid") -> 739
A11: PM2.5 instrument model | B11: 1405DF | D11: Proportion of valid PM10 results (%) | E11: =E10/E9 -> 0.9932795699
A12: PM2.5 instrument intake height (m) | B12: 3.5
A13: PM10 method compliance with AS 3580.9.8-2008 | B13: No*
A14: PM10 instrument make | B14: Thermo Scientific
A15: PM10 instrument model | B15: 1405DF
A16: PM10 instrument intake height (m) | B16: 3.5
A17: *The 1405DF TEOM used at this site measures PM10 indirectly rather than directly. The unit does however meet the intent of AS 3580.9.8-2008, and this method has been accredited by the USEPA. It is considered scientifically robust and is used extensively throughout NSW with EPA's knowledge and informal acceptance.

Sheet Meta data_lookup
A1: Location | B1: Easting | C1: Northing | D1: Site elevation (m)
A2: Maules Creek | B2: 225302 | C2: 6623037 | D2: ND
A3: Breeza | B3: 237993 | C3: 6542606 | D3: ND
A4: Will-gai | B4: 231804 | C4: 6596392 | D4: 294
A5: Werris Creek | B5: 276783 | C5: 6528734 | D5: 362

Sheet Raw data_format
A1: Parameter | B1: Format | C1: Comment | D1: Units of measure | E1: Minimum | F1: Maximum
A2: Year | B2: yyyy | C2: 4 integer format | D2: Not applicable | E2: 2015 | F2: Until reporting ceases
A3: Month | B3: mm | C3: 2 integer format | D3: Not applicable | E3: 1 | F3: 12
A4: Day | B4: dd | C4: 2 integer format | D4: Not applicable | E4: 1 | F4: 31
A5: Hour | B5: hh | C5: 2 integer format | D5: Not applicable | E5: 0 | F5: 23
A6: PM10 | B6: 0 | C6: 1 decimal place resolution | D6: µg/m3 | E6: Negative | F6: Instrument specific
A7: PM2.5 | B7: 0 | C7: 2 decimal place resolution | D7: µg/m3 | E7: Negative | F7: Instrument specific
A8: Status | B8: Text | C8: 7 character format | D8: Not applicable | E8: Valid | F8: Invalid

Sheet Raw data_sheet
A1: Year | B1: Month | C1: Day | D1: Hour | E1: Date and time | F1: PM2.5_hourly | G1: PM2.5_Data_Status | H1: PM2.5_24hr_rolling_average | I1: PM10_hourly | J1: PM10_Data_Status | K1: PM10_24hr_rolling_average | N1: PM2.5_hourly_valid_plot | O1: PM2.5_24hr_rolling_ave_valid_plot | P1: PM10_hourly_valid_plot | Q1: PM10_24hr_rolling_ave_valid_plot | R1: PM10_hourly_valid_plot_series | S1: PM10_24hr_rolling_average_valid_plot_series | T1: PM2.5_hourly_valid_plot_series | U1: PM2.5_24hr_rolling_average_valid_plot_series
A2: 2024 | B2: 3 | C2: 1 | D2: 0 | E2: =DATE(A2,B2,C2)+TIME(D2,0,0) -> 45352 | F2: 3.18 | G2: Valid | H2: 6.631666667 | I2: 7.24 | J2: Valid | K2: 13.36541667 | N2: =IF(G2="Valid", F2, NA()) -> 3.18 | O2: =IF(G2="Valid", H2, NA()) -> 6.631666667 | P2: =IF(J2="Valid", I2, NA()) -> 7.24 | Q2: =IF(J2="Valid", K2, NA()) -> 13.36541667 | R2: 7.24 | S2: 13.36541667 | T2: 3.18 | U2: 6.631666667
A3: 2024 | B3: 3 | C3: =C2 -> 1 | D3: =IF(D2=23,0,D2+1) -> 1 | E3: =E2+0.0416666666666666 -> 45352.04167 | F3: 2.48 | G3: Valid | H3: 6.505 | I3: 5.75 | J3: Valid | K3: 13.17375 | N3: 2.48 | O3: 6.505 | P3: 5.75 | Q3: 13.17375 | R3: 5.75 | S3: 13.17375 | T3: 2.48 | U3: 6.505
A4: 2024 | B4: 3 | C4: =C3 -> 1 | D4: =IF(D3=23,0,D3+1) -> 2 | E4: =E3+0.0416666666666666 -> 45352.08333 | F4: 4.32 | G4: Valid | H4: 6.415416667 | I4: 8.31 | J4: Valid | K4: 13.07708333 | N4: 4.32 | O4: 6.415416667 | P4: 8.31 | Q4: 13.07708333 | R4: 8.31 | S4: 13.07708333 | T4: 4.32 | U4: 6.415416667
A5: 2024 | B5: 3 | C5: 1 | D5: 3 | E5: 45352.125 | F5: 5.58 | G5: Valid | H5: 6.357083333 | I5: 10.76 | J5: Valid | K5: 13.10625 | N5: 5.58 | O5: 6.357083333 | P5: 10.76 | Q5: 13.10625 | R5: 10.76 | S5: 13.10625 | T5: 5.58 | U5: 6.357083333
A6: 2024 | B6: 3 | C6: 1 | D6: 4 | E6: 45352.16667 | F6: 6.01 | G6: Valid | H6: 6.367916667 | I6: 9.46 | J6: Valid | K6: 13.12708333 | N6: 6.01 | O6: 6.367916667 | P6: 9.46 | Q6: 13.12708333 | R6: 9.46 | S6: 13.12708333 | T6: 6.01 | U6: 6.367916667
A7: 2024 | B7: 3 | C7: 1 | D7: 5 | E7: 45352.20833 | F7: 3.1 | G7: Valid | H7: 6.240416667 | I7: 6.05 | J7: Valid | K7: 13.00791667 | N7: 3.1 | O7: 6.240416667 | P7: 6.05 | Q7: 13.00791667 | R7: 6.05 | S7: 13.00791667 | T7: 3.1 | U7: 6.240416667
A8: 2024 | B8: 3 | C8: 1 | D8: 6 | E8: 45352.25 | F8: 6.68 | G8: Valid | H8: 6.017916667 | I8: 25.97 | J8: Valid | K8: 12.87125 | N8: 6.68 | O8: 6.017916667 | P8: 25.97 | Q8: 12.87125 | R8: 25.97 | S8: 12.87125 | T8: 6.68 | U8: 6.017916667
A9: 2024 | B9: 3 | C9: 1 | D9: 7 | E9: 45352.29167 | F9: 7.29 | G9: Valid | H9: 6.009583333 | I9: 17.24 | J9: Valid | K9: 13.1275 | N9: 7.29 | O9: 6.009583333 | P9: 17.24 | Q9: 13.1275 | R9: 17.24 | S9: 13.1275 | T9: 7.29 | U9: 6.009583333
A10: 2024 | B10: 3 | C10: 1 | D10: 8 | E10: 45352.33333 | F10: 6.81 | G10: Valid | H10: 6.060833333 | I10: 15.76 | J10: Valid | K10: 13.39041667 | N10: 6.81 | O10: 6.060833333 | P10: 15.76 | Q10: 13.39041667 | R10: 15.76 | S10: 13.39041667 | T10: 6.81 | U10: 6.060833333
A11: 2024 | B11: 3 | C11: 1 | D11: 9 | E11: 45352.375 | F11: 6.51 | G11: Valid | H11: 5.96375 | I11: 12.13 | J11: Valid | K11: 13.23375 | N11: 6.51 | O11: 5.96375 | P11: 12.13 | Q11: 13.23375 | R11: 12.13 | S11: 13.23375 | T11: 6.51 | U11: 5.96375
A12: 2024 | B12: 3 | C12: 1 | D12: 10 | E12: 45352.41667 | F12: 3.73 | G12: Valid | H12: 5.904166667 | I12: 11.19 | J12: Valid | K12: 13.20791667 | N12: 3.73 | O12: 5.904166667 | P12: 11.19 | Q12: 13.20791667 | R12: 11.19 | S12: 13.20791667 | T12: 3.73 | U12: 5.904166667
A13: 2024 | B13: 3 | C13: 1 | D13: 11 | E13: 45352.45833 | F13: 4.87 | G13: Valid | H13: 5.859583333 | I13: 12.51 | J13: Valid | K13: 13.175 | N13: 4.87 | O13: 5.859583333 | P13: 12.51 | Q13: 13.175 | R13: 12.51 | S13: 13.175 | T13: 4.87 | U13: 5.859583333
A14: 2024 | B14: 3 | C14: 1 | D14: 12 | E14: 45352.5 | F14: 9.64 | G14: Valid | H14: 5.789166667 | I14: 17.62 | J14: Valid | K14: 13.14125 | N14: 9.64 | O14: 5.789166667 | P14: 17.62 | Q14: 13.14125 | R14: 17.62 | S14: 13.14125 | T14: 9.64 | U14: 5.789166667
A15: 2024 | B15: 3 | C15: 1 | D15: 13 | E15: 45352.54167 | F15: 6.37 | G15: Valid | H15: 5.71 | I15: 10.02 | J15: Valid | K15: 12.86166667 | N15: 6.37 | O15: 5.71 | P15: 10.02 | Q15: 12.86166667 | R15: 10.02 | S15: 12.86166667 | T15: 6.37 | U15: 5.71
A16: 2024 | B16: 3 | C16: 1 | D16: 14 | E16: 45352.58333 | F16: 3.27 | G16: Valid | H16: 5.47125 | I16: 7.13 | J16: Valid | K16: 12.42916667 | N16: 3.27 | O16: 5.47125 | P16: 7.13 | Q16: 12.42916667 | R16: 7.13 | S16: 12.42916667 | T16: 3.27 | U16: 5.47125
A17: 2024 | B17: 3 | C17: 1 | D17: 15 | E17: 45352.625 | F17: 4.67 | G17: Valid | H17: 5.37 | I17: 9.85 | J17: Valid | K17: 12.16 | N17: 4.67 | O17: 5.37 | P17: 9.85 | Q17: 12.16 | R17: 9.85 | S17: 12.16 | T17: 4.67 | U17: 5.37
A18: 2024 | B18: 3 | C18: 1 | D18: 16 | E18: 45352.66667 | F18: 1.07 | G18: Valid | H18: 5.1575 | I18: 6.94 | J18: Valid | K18: 11.84583333 | N18: 1.07 | O18: 5.1575 | P18: 6.94 | Q18: 11.84583333 | R18: 6.94 | S18: 11.84583333 | T18: 1.07 | U18: 5.1575
A19: 2024 | B19: 3 | C19: 1 | D19: 17 | E19: 45352.70833 | F19: 5.92 | G19: Valid | H19: 5.2225 | I19: 33.42 | J19: Valid | K19: 12.71125 | N19: 5.92 | O19: 5.2225 | P19: 33.42 | Q19: 12.71125 | R19: 33.42 | S19: 12.71125 | T19: 5.92 | U19: 5.2225
A20: 2024 | B20: 3 | C20: 1 | D20: 18 | E20: 45352.75 | F20: 6.93 | G20: Valid | H20: 5.250416667 | I20: 32.3 | J20: Valid | K20: 13.49375 | N20: 6.93 | O20: 5.250416667 | P20: 32.3 | Q20: 13.49375 | R20: 32.3 | S20: 13.49375 | T20: 6.93 | U20: 5.250416667
A21: 2024 | B21: 3 | C21: 1 | D21: 19 | E21: 45352.79167 | F21: 10.03 | G21: Valid | H21: 5.39125 | I21: 28.82 | J21: Valid | K21: 13.685 | N21: 10.03 | O21: 5.39125 | P21: 28.82 | Q21: 13.685 | R21: 28.82 | S21: 13.685 | T21: 10.03 | U21: 5.39125
A22: 2024 | B22: 3 | C22: 1 | D22: 20 | E22: 45352.83333 | F22: 11.1 | G22: Valid | H22: 5.660416667 | I22: 20.63 | J22: Valid | K22: 14.04666667 | N22: 11.1 | O22: 5.660416667 | P22: 20.63 | Q22: 14.04666667 | R22: 20.63 | S22: 14.04666667 | T22: 11.1 | U22: 5.660416667
A23: 2024 | B23: 3 | C23: 1 | D23: 21 | E23: 45352.875 | F23: 7.04 | G23: Valid | H23: 5.742083333 | I23: 22.05 | J23: Valid | K23: 14.63583333 | N23: 7.04 | O23: 5.742083333 | P23: 22.05 | Q23: 14.63583333 | R23: 22.05 | S23: 14.63583333 | T23: 7.04 | U23: 5.742083333
A24: 2024 | B24: 3 | C24: 1 | D24: 22 | E24: 45352.91667 | F24: 7.05 | G24: Valid | H24: 5.820416667 | I24: 18.84 | J24: Valid | K24: 15.02041667 | N24: 7.05 | O24: 5.820416667 | P24: 18.84 | Q24: 15.02041667 | R24: 18.84 | S24: 15.02041667 | T24: 7.05 | U24: 5.820416667
A25: 2024 | B25: 3 | C25: =C24 -> 1 | D25: 23 | E25: 45352.95833 | F25: 4.96 | G25: Valid | H25: 5.775416667 | I25: 11.45 | J25: Valid | K25: 15.06 | N25: 4.96 | O25: 5.775416667 | P25: 11.45 | Q25: 15.06 | R25: 11.45 | S25: 15.06 | T25: 4.96 | U25: 5.775416667
A26: 2024 | B26: 3 | C26: =C2+1 -> 2 | D26: 0 | E26: 45353 | F26: 2.75 | G26: Valid | H26: 5.7575 | I26: 7.54 | J26: Valid | K26: 15.0725 | N26: 2.75 | O26: 5.7575 | P26: 7.54 | Q26: 15.0725 | R26: 7.54 | S26: 15.0725 | T26: 2.75 | U26: 5.7575
A27: 2024 | B27: 3 | C27: =C3+1 -> 2 | D27: 1 | E27: 45353.04167 | F27: 6.21 | G27: Valid | H27: 5.912916667 | I27: 12.84 | J27: Valid | K27: 15.36791667 | N27: 6.21 | O27: 5.912916667 | P27: 12.84 | Q27: 15.36791667 | R27: 12.84 | S27: 15.36791667 | T27: 6.21 | U27: 5.912916667
A28: 2024 | B28: 3 | C28: 2 | D28: 2 | E28: 45353.08333 | F28: 2.84 | G28: Valid | H28: 5.85125 | I28: 7.3 | J28: Valid | K28: 15.32583333 | N28: 2.84 | O28: 5.85125 | P28: 7.3 | Q28: 15.32583333 | R28: 7.3 | S28: 15.32583333 | T28: 2.84 | U28: 5.85125
A29: 2024 | B29: 3 | C29: 2 | D29: 3 | E29: 45353.125 | F29: 3.09 | G29: Valid | H29: 5.7475 | I29: 8.79 | J29: Valid | K29: 15.24375 | N29: 3.09 | O29: 5.7475 | P29: 8.79 | Q29: 15.24375 | R29: 8.79 | S29: 15.24375 | T29: 3.09 | U29: 5.7475
A30: 2024 | B30: 3 | C30: 2 | D30: 4 | E30: 45353.16667 | F30: 6.35 | G30: Valid | H30: 5.761666667 | I30: 11.95 | J30: Valid | K30: 15.3475 | N30: 6.35 | O30: 5.761666667 | P30: 11.95 | Q30: 15.3475 | R30: 11.95 | S30: 15.3475 | T30: 6.35 | U30: 5.761666667
A31: 2024 | B31: 3 | C31: 2 | D31: 5 | E31: 45353.20833 | F31: 7.01 | G31: Valid | H31: 5.924583333 | I31: 12.21 | J31: Valid | K31: 15.60416667 | N31: 7.01 | O31: 5.924583333 | P31: 12.21 | Q31: 15.60416667 | R31: 12.21 | S31: 15.60416667 | T31: 7.01 | U31: 5.924583333
A32: 2024 | B32: 3 | C32: 2 | D32: 6 | E32: 45353.25 | F32: 9.82 | G32: Valid | H32: 6.055416667 | I32: 28.69 | J32: Valid | K32: 15.7175 | N32: 9.82 | O32: 6.055416667 | P32: 28.69 | Q32: 15.7175 | R32: 28.69 | S32: 15.7175 | T32: 9.82 | U32: 6.055416667
A33: 2024 | B33: 3 | C33: 2 | D33: 7 | E33: 45353.29167 | F33: 6.2 | G33: Valid | H33: 6.01 | I33: 17.85 | J33: Valid | K33: 15.74291667 | N33: 6.2 | O33: 6.01 | P33: 17.85 | Q33: 15.74291667 | R33: 17.85 | S33: 15.74291667 | T33: 6.2 | U33: 6.01
A34: 2024 | B34: 3 | C34: 2 | D34: 8 | E34: 45353.33333 | F34: 8.21 | G34: Valid | H34: 6.068333333 | I34: 16.34 | J34: Valid | K34: 15.76708333 | N34: 8.21 | O34: 6.068333333 | P34: 16.34 | Q34: 15.76708333 | R34: 16.34 | S34: 15.76708333 | T34: 8.21 | U34: 6.068333333
A35: 2024 | B35: 3 | C35: 2 | D35: 9 | E35: 45353.375 | F35: 11.65 | G35: Valid | H35: 6.2825 | I35: 18.76 | J35: Valid | K35: 16.04333333 | N35: 11.65 | O35: 6.2825 | P35: 18.76 | Q35: 16.04333333 | R35: 18.76 | S35: 16.04333333 | T35: 11.65 | U35: 6.2825
A36: 2024 | B36: 3 | C36: 2 | D36: 10 | E36: 45353.41667 | F36: 9.46 | G36: Valid | H36: 6.52125 | I36: 20.21 | J36: Valid | K36: 16.41916667 | N36: 9.46 | O36: 6.52125 | P36: 20.21 | Q36: 16.41916667 | R36: 20.21 | S36: 16.41916667 | T36: 9.46 | U36: 6.52125
A37: 2024 | B37: 3 | C37: 2 | D37: 11 | E37: 45353.45833 | F37: 5.4 | G37: Valid | H37: 6.543333333 | I37: 14.59 | J37: Valid | K37: 16.50583333 | N37: 5.4 | O37: 6.543333333 | P37: 14.59 | Q37: 16.50583333 | R37: 14.59 | S37: 16.50583333 | T37: 5.4 | U37: 6.543333333
A38: 2024 | B38: 3 | C38: 2 | D38: 12 | E38: 45353.5 | F38: 9.27 | G38: Valid | H38: 6.527916667 | I38: 18.57 | J38: Valid | K38: 16.54541667 | N38: 9.27 | O38: 6.527916667 | P38: 18.57 | Q38: 16.54541667 | R38: 18.57 | S38: 16.54541667 | T38: 9.27 | U38: 6.527916667
A39: 2024 | B39: 3 | C39: 2 | D39: 13 | E39: 45353.54167 | F39: 11.57 | G39: Valid | H39: 6.744583333 | I39: 20.46 | J39: Valid | K39: 16.98041667 | N39: 11.57 | O39: 6.744583333 | P39: 20.46 | Q39: 16.98041667 | R39: 20.46 | S39: 16.98041667 | T39: 11.57 | U39: 6.744583333
A40: 2024 | B40: 3 | C40: 2 | D40: 14 | E40: 45353.58333 | F40: 12.42 | G40: Valid | H40: 7.125833333 | I40: 21.58 | J40: Valid | K40: 17.5825 | N40: 12.42 | O40: 7.125833333 | P40: 21.58 | Q40: 17.5825 | R40: 21.58 | S40: 17.5825 | T40: 12.42 | U40: 7.125833333
A41: 2024 | B41: 3 | C41: 2 | D41: 15 | E41: 45353.625 | F41: 11.83 | G41: Valid | H41: 7.424166667 | I41: 28.82 | J41: Valid | K41: 18.37291667 | N41: 11.83 | O41: 7.424166667 | P41: 28.82 | Q41: 18.37291667 | R41: 28.82 | S41: 18.37291667 | T41: 11.83 | U41: 7.424166667
A42: 2024 | B42: 3 | C42: 2 | D42: 16 | E42: 45353.66667 | G42: Invalid | H42: 7.700434783 | J42: Invalid | K42: 18.87 | L42: Power Failure | M42: Power outage - system reset
A43: 2024 | B43: 3 | C43: 2 | D43: 17 | E43: 45353.70833 | G43: Invalid | H43: 7.781363636 | J43: Invalid | K43: 18.20863636 | L43: Power Failure | M43: Power outage - system reset
A44: 2024 | B44: 3 | C44: 2 | D44: 18 | E44: 45353.75 | F44: 7.16 | G44: Valid | H44: 7.791818182 | I44: 13.06 | J44: Valid | K44: 17.33409091 | N44: 7.16 | O44: 7.791818182 | P44: 13.06 | Q44: 17.33409091 | R44: 13.06 | S44: 17.33409091 | T44: 7.16 | U44: 7.791818182
A45: 2024 | B45: 3 | C45: 2 | D45: 19 | E45: 45353.79167 | F45: 8.21 | G45: Valid | H45: 7.709090909 | I45: 14.29 | J45: Valid | K45: 16.67363636 | N45: 8.21 | O45: 7.709090909 | P45: 14.29 | Q45: 16.67363636 | R45: 14.29 | S45: 16.67363636 | T45: 8.21 | U45: 7.709090909
A46: 2024 | B46: 3 | C46: 2 | D46: 20 | E46: 45353.83333 | F46: 4.45 | G46: Valid | H46: 7.406818182 | I46: 9.67 | J46: Valid | K46: 16.17545455 | N46: 4.45 | O46: 7.406818182 | P46: 9.67 | Q46: 16.17545455 | R46: 9.67 | S46: 16.17545455 | T46: 4.45 | U46: 7.406818182
A47: 2024 | B47: 3 | C47: 2 | D47: 21 | E47: 45353.875 | F47: 7.6 | G47: Valid | H47: 7.432272727 | I47: 12.61 | J47: Valid | K47: 15.74636364 | N47: 7.6 | O47: 7.432272727 | P47: 12.61 | Q47: 15.74636364 | R47: 12.61 | S47: 15.74636364 | T47: 7.6 | U47: 7.432272727
A48: 2024 | B48: 3 | C48: 2 | D48: 22 | E48: 45353.91667 | F48: 1.92 | G48: Valid | H48: 7.199090909 | I48: 6.73 | J48: Valid | K48: 15.19590909 | N48: 1.92 | O48: 7.199090909 | P48: 6.73 | Q48: 15.19590909 | R48: 6.73 | S48: 15.19590909 | T48: 1.92 | U48: 7.199090909
A49: 2024 | B49: 3 | C49: 2 | D49: 23 | E49: 45353.95833 | F49: 4.74 | G49: Valid | H49: 7.189090909 | I49: 9.4 | J49: Valid | K49: 15.10272727 | N49: 4.74 | O49: 7.189090909 | P49: 9.4 | Q49: 15.10272727 | R49: 9.4 | S49: 15.10272727 | T49: 4.74 | U49: 7.189090909
A50: 2024 | B50: 3 | C50: 3 | D50: 0 | E50: 45354 | F50: 7.67 | G50: Valid | H50: 7.412727273 | I50: 14.67 | J50: Valid | K50: 15.42681818 | N50: 7.67 | O50: 7.412727273 | P50: 14.67 | Q50: 15.42681818 | R50: 14.67 | S50: 15.42681818 | T50: 7.67 | U50: 7.412727273
A51: 2024 | B51: 3 | C51: 3 | D51: 1 | E51: 45354.04167 | F51: 3.67 | G51: Valid | H51: 7.297272727 | I51: 9.1 | J51: Valid | K51: 15.25681818 | N51: 3.67 | O51: 7.297272727 | P51: 9.1 | Q51: 15.25681818 | R51: 9.1 | S51: 15.25681818 | T51: 3.67 | U51: 7.297272727
A52: 2024 | B52: 3 | C52: 3 | D52: 2 | E52: 45354.08333 | F52: 7.18 | G52: Valid | H52: 7.494545455 | I52: 11.57 | J52: Valid | K52: 15.45090909 | N52: 7.18 | O52: 7.494545455 | P52: 11.57 | Q52: 15.45090909 | R52: 11.57 | S52: 15.45090909 | T52: 7.18 | U52: 7.494545455
A53: 2024 | B53: 3 | C53: 3 | D53: 3 | E53: 45354.125 | F53: 5.39 | G53: Valid | H53: 7.599090909 | I53: 7.17 | J53: Valid | K53: 15.37727273 | N53: 5.39 | O53: 7.599090909 | P53: 7.17 | Q53: 15.37727273 | R53: 7.17 | S53: 15.37727273 | T53: 5.39 | U53: 7.599090909
A54: 2024 | B54: 3 | C54: 3 | D54: 4 | E54: 45354.16667 | F54: 3.65 | G54: Valid | H54: 7.476363636 | I54: 5.4 | J54: Valid | K54: 15.07954545 | N54: 3.65 | O54: 7.476363636 | P54: 5.4 | Q54: 15.07954545 | R54: 5.4 | S54: 15.07954545 | T54: 3.65 | U54: 7.476363636
A55: 2024 | B55: 3 | C55: 3 | D55: 5 | E55: 45354.20833 | F55: 9.06 | G55: Valid | H55: 7.569545455 | I55: 11.58 | J55: Valid | K55: 15.05090909 | N55: 9.06 | O55: 7.569545455 | P55: 11.58 | Q55: 15.05090909 | R55: 11.58 | S55: 15.05090909 | T55: 9.06 | U55: 7.569545455
A56: 2024 | B56: 3 | C56: 3 | D56: 6 | E56: 45354.25 | F56: 7.05 | G56: Valid | H56: 7.443636364 | I56: 9.92 | J56: Valid | K56: 14.19772727 | N56: 7.05 | O56: 7.443636364 | P56: 9.92 | Q56: 14.19772727 | R56: 9.92 | S56: 14.19772727 | T56: 7.05 | U56: 7.443636364
A57: 2024 | B57: 3 | C57: 3 | D57: 7 | E57: 45354.29167 | F57: 5.14 | G57: Valid | H57: 7.395454545 | I57: 8.26 | J57: Valid | K57: 13.76181818 | N57: 5.14 | O57: 7.395454545 | P57: 8.26 | Q57: 13.76181818 | R57: 8.26 | S57: 13.76181818 | T57: 5.14 | U57: 7.395454545
A58: 2024 | B58: 3 | C58: 3 | D58: 8 | E58: 45354.33333 | F58: 9.66 | G58: Valid | H58: 7.461363636 | I58: 11.07 | J58: Valid | K58: 13.52227273 | N58: 9.66 | O58: 7.461363636 | P58: 11.07 | Q58: 13.52227273 | R58: 11.07 | S58: 13.52227273 | T58: 9.66 | U58: 7.461363636
A59: 2024 | B59: 3 | C59: 3 | D59: 9 | E59: 45354.375 | F59: 9.1 | G59: Valid | H59: 7.345454545 | I59: 13.77 | J59: Valid | K59: 13.29545455 | N59: 9.1 | O59: 7.345454545 | P59: 13.77 | Q59: 13.29545455 | R59: 13.77 | S59: 13.29545455 | T59: 9.1 | U59: 7.345454545
A60: 2024 | B60: 3 | C60: 3 | D60: 10 | E60: 45354.41667 | F60: 8.31 | G60: Valid | H60: 7.293181818 | I60: 12.28 | J60: Valid | K60: 12.935 | N60: 8.31 | O60: 7.293181818 | P60: 12.28 | Q60: 12.935 | R60: 12.28 | S60: 12.935 | T60: 8.31 | U60: 7.293181818
A61: 2024 | B61: 3 | C61: 3 | D61: 11 | E61: 45354.45833 | F61: 2.91 | G61: Valid | H61: 7.18 | I61: 8.06 | J61: Valid | K61: 12.63818182 | N61: 2.91 | O61: 7.18 | P61: 8.06 | Q61: 12.63818182 | R61: 8.06 | S61: 12.63818182 | T61: 2.91 | U61: 7.18
A62: 2024 | B62: 3 | C62: 3 | D62: 12 | E62: 45354.5 | F62: 10.77 | G62: Valid | H62: 7.248181818 | I62: 15.32 | J62: Valid | K62: 12.49045455 | N62: 10.77 | O62: 7.248181818 | P62: 15.32 | Q62: 12.49045455 | R62: 15.32 | S62: 12.49045455 | T62: 10.77 | U62: 7.248181818
A63: 2024 | B63: 3 | C63: 3 | D63: 13 | E63: 45354.54167 | F63: 9.53 | G63: Valid | H63: 7.155454545 | I63: 13.57 | J63: Valid | K63: 12.17727273 | N63: 9.53 | O63: 7.155454545 | P63: 13.57 | Q63: 12.17727273 | R63: 13.57 | S63: 12.17727273 | T63: 9.53 | U63: 7.155454545
A64: 2024 | B64: 3 | C64: 3 | D64: 14 | E64: 45354.58333 | F64: 6.21 | G64: Valid | H64: 6.873181818 | I64: 10.8 | J64: Valid | K64: 11.68727273 | N64: 6.21 | O64: 6.873181818 | P64: 10.8 | Q64: 11.68727273 | R64: 10.8 | S64: 11.68727273 | T64: 6.21 | U64: 6.873181818
A65: 2024 | B65: 3 | C65: 3 | D65: 15 | E65: 45354.625 | F65: 7.58 | G65: Valid | H65: 6.68 | I65: 11.4 | J65: Valid | K65: 10.89545455 | N65: 7.58 | O65: 6.68 | P65: 11.4 | Q65: 10.89545455 | R65: 11.4 | S65: 10.89545455 | T65: 7.58 | U65: 6.68
A66: 2024 | B66: 3 | C66: 3 | D66: 16 | E66: 45354.66667 | F66: 8.08 | G66: Valid | H66: 6.740869565 | I66: 11.8 | J66: Valid | K66: 10.93478261 | N66: =IF(G66="Valid", F66, NA()) -> 8.08 | O66: =IF(G66="Valid", H66, NA()) -> 6.740869565 | P66: =IF(J66="Valid", I66, NA()) -> 11.8 | Q66: =IF(J66="Valid", K66, NA()) -> 10.93478261 | R66: 11.8 | S66: 10.93478261 | T66: 8.08 | U66: 6.740869565
A67: 2024 | B67: 3 | C67: 3 | D67: 17 | E67: 45354.70833 | F67: 3.57 | G67: Valid | H67: 6.60875 | I67: 8.62 | J67: Valid | K67: 10.83833333 | N67: 3.57 | O67: 6.60875 | P67: 8.62 | Q67: 10.83833333 | R67: 8.62 | S67: 10.83833333 | T67: 3.57 | U67: 6.60875
A68: 2024 | B68: 3 | C68: 3 | D68: =IF(D67=23,0,D67+1) -> 18 | E68: =E67+0.0416666666666666 -> 45354.75 | F68: 9.31 | G68: Valid | H68: 6.698333333 | I68: 14.04 | J68: Valid | K68: 10.87916667 | N68: 9.31 | O68: 6.698333333 | P68: 14.04 | Q68: 10.87916667 | R68: 14.04 | S68: 10.87916667 | T68: 9.31 | U68: 6.698333333
A69: 2024 | B69: 3 | C69: 3 | D69: 19 | E69: 45354.79167 | F69: 2.96 | G69: Valid | H69: 6.479583333 | I69: 7.9 | J69: Valid | K69: 10.61291667 | N69: 2.96 | O69: 6.479583333 | P69: 7.9 | Q69: 10.61291667 | R69: 7.9 | S69: 10.61291667 | T69: 2.96 | U69: 6.479583333
A70: 2024 | B70: 3 | C70: 3 | D70: 20 | E70: 45354.83333 | F70: 6.47 | G70: Valid | H70: 6.56375 | I70: 19.79 | J70: Valid | K70: 11.03458333 | N70: 6.47 | O70: 6.56375 | P70: 19.79 | Q70: 11.03458333 | R70: 19.79 | S70: 11.03458333 | T70: 6.47 | U70: 6.56375
A71: 2024 | B71: 3 | C71: 3 | D71: 21 | E71: 45354.875 | F71: 9.96 | G71: Valid | H71: 6.662083333 | I71: 29.05 | J71: Valid | K71: 11.71958333 | N71: 9.96 | O71: 6.662083333 | P71: 29.05 | Q71: 11.71958333 | R71: 29.05 | S71: 11.71958333 | T71: 9.96 | U71: 6.662083333
A72: 2024 | B72: 3 | C72: 3 | D72: 22 | E72: 45354.91667 | F72: 2.79 | G72: Valid | H72: 6.698333333 | I72: 14.52 | J72: Valid | K72: 12.04416667 | N72: 2.79 | O72: 6.698333333 | P72: 14.52 | Q72: 12.04416667 | R72: 14.52 | S72: 12.04416667 | T72: 2.79 | U72: 6.698333333
A73: 2024 | B73: 3 | C73: 3 | D73: 23 | E73: 45354.95833 | F73: 5.71 | G73: Valid | H73: 6.73875 | I73: 12.26 | J73: Valid | K73: 12.16333333 | N73: 5.71 | O73: 6.73875 | P73: 12.26 | Q73: 12.16333333 | R73: 12.26 | S73: 12.16333333 | T73: 5.71 | U73: 6.73875
A74: 2024 | B74: 3 | C74: 4 | D74: 0 | E74: 45355 | F74: 5.93 | G74: Valid | H74: 6.66625 | I74: 12.49 | J74: Valid | K74: 12.0725 | N74: 5.93 | O74: 6.66625 | P74: 12.49 | Q74: 12.0725 | R74: 12.49 | S74: 12.0725 | T74: 5.93 | U74: 6.66625
A75: 2024 | B75: 3 | C75: 4 | D75: 1 | E75: 45355.04167 | F75: 8.08 | G75: Valid | H75: 6.85 | I75: 13.36 | J75: Valid | K75: 12.25 | N75: 8.08 | O75: 6.85 | P75: 13.36 | Q75: 12.25 | R75: 13.36 | S75: 12.25 | T75: 8.08 | U75: 6.85
A76: 2024 | B76: 3 | C76: 4 | D76: 2 | E76: 45355.08333 | F76: 4.74 | G76: Valid | H76: 6.748333333 | I76: 9.47 | J76: Valid | K76: 12.1625 | N76: 4.74 | O76: 6.748333333 | P76: 9.47 | Q76: 12.1625 | R76: 9.47 | S76: 12.1625 | T76: 4.74 | U76: 6.748333333
A77: 2024 | B77: 3 | C77: 4 | D77: 3 | E77: 45355.125 | F77: 2.94 | G77: Valid | H77: 6.64625 | I77: 8.13 | J77: Valid | K77: 12.2025 | N77: 2.94 | O77: 6.64625 | P77: 8.13 | Q77: 12.2025 | R77: 8.13 | S77: 12.2025 | T77: 2.94 | U77: 6.64625
A78: 2024 | B78: 3 | C78: 4 | D78: 4 | E78: 45355.16667 | F78: 1.77 | G78: Valid | H78: 6.567916667 | I78: 6.16 | J78: Valid | K78: 12.23416667 | N78: 1.77 | O78: 6.567916667 | P78: 6.16 | Q78: 12.23416667 | R78: 6.16 | S78: 12.23416667 | T78: 1.77 | U78: 6.567916667
A79: 2024 | B79: 3 | C79: 4 | D79: 5 | E79: 45355.20833 | F79: 9.19 | G79: Valid | H79: 6.573333333 | I79: 59.13 | J79: Valid | K79: 14.21541667 | N79: 9.19 | O79: 6.573333333 | P79: 59.13 | Q79: 14.21541667 | R79: 59.13 | S79: 14.21541667 | T79: 9.19 | U79: 6.573333333
A80: 2024 | B80: 3 | C80: 4 | D80: 6 | E80: 45355.25 | F80: 11.74 | G80: Valid | H80: 6.76875 | I80: 50.05 | J80: Valid | K80: 15.8875 | N80: 11.74 | O80: 6.76875 | P80: 50.05 | Q80: 15.8875 | R80: 50.05 | S80: 15.8875 | T80: 11.74 | U80: 6.76875
A81: 2024 | B81: 3 | C81: 4 | D81: 7 | E81: 45355.29167 | F81: 4.73 | G81: Valid | H81: 6.751666667 | I81: 41.21 | J81: Valid | K81: 17.26041667 | N81: 4.73 | O81: 6.751666667 | P81: 41.21 | Q81: 17.26041667 | R81: 41.21 | S81: 17.26041667 | T81: 4.73 | U81: 6.751666667
A82: 2024 | B82: 3 | C82: 4 | D82: 8 | E82: 45355.33333 | F82: 4.26 | G82: Valid | H82: 6.526666667 | I82: 16.63 | J82: Valid | K82: 17.49208333 | N82: 4.26 | O82: 6.526666667 | P82: 16.63 | Q82: 17.49208333 | R82: 16.63 | S82: 17.49208333 | T82: 4.26 | U82: 6.526666667
A83: 2024 | B83: 3 | C83: 4 | D83: 9 | E83: 45355.375 | F83: 6.2 | G83: Valid | H83: 6.405833333 | I83: 19.55 | J83: Valid | K83: 17.73291667 | N83: 6.2 | O83: 6.405833333 | P83: 19.55 | Q83: 17.73291667 | R83: 19.55 | S83: 17.73291667 | T83: 6.2 | U83: 6.405833333
A84: 2024 | B84: 3 | C84: 4 | D84: 10 | E84: 45355.41667 | F84: 7.92 | G84: Valid | H84: 6.389583333 | I84: 16.6 | J84: Valid | K84: 17.91291667 | N84: 7.92 | O84: 6.389583333 | P84: 16.6 | Q84: 17.91291667 | R84: 16.6 | S84: 17.91291667 | T84: 7.92 | U84: 6.389583333
A85: 2024 | B85: 3 | C85: 4 | D85: 11 | E85: 45355.45833 | F85: 8.67 | G85: Valid | H85: 6.629583333 | I85: 20.74 | J85: Valid | K85: 18.44125 | N85: 8.67 | O85: 6.629583333 | P85: 20.74 | Q85: 18.44125 | R85: 20.74 | S85: 18.44125 | T85: 8.67 | U85: 6.629583333
A86: 2024 | B86: 3 | C86: 4 | D86: 12 | E86: 45355.5 | F86: 9.41 | G86: Valid | H86: 6.572916667 | I86: 18.35 | J86: Valid | K86: 18.5675 | N86: 9.41 | O86: 6.572916667 | P86: 18.35 | Q86: 18.5675 | R86: 18.35 | S86: 18.5675 | T86: 9.41 | U86: 6.572916667
A87: 2024 | B87: 3 | C87: 4 | D87: 13 | E87: 45355.54167 | F87: 5.28 | G87: Valid | H87: 6.395833333 | I87: 14.88 | J87: Valid | K87: 18.62208333 | N87: 5.28 | O87: 6.395833333 | P87: 14.88 | Q87: 18.62208333 | R87: 14.88 | S87: 18.62208333 | T87: 5.28 | U87: 6.395833333
A88: 2024 | B88: 3 | C88: 4 | D88: 14 | E88: 45355.58333 | F88: 9.27 | G88: Valid | H88: 6.523333333 | I88: 14.92 | J88: Valid | K88: 18.79375 | N88: 9.27 | O88: 6.523333333 | P88: 14.92 | Q88: 18.79375 | R88: 14.92 | S88: 18.79375 | T88: 9.27 | U88: 6.523333333
A89: 2024 | B89: 3 | C89: 4 | D89: 15 | E89: 45355.625 | F89: -3.42 | G89: Valid | H89: 6.065 | I89: 4.54 | J89: Valid | K89: 18.50791667 | N89: -3.42 | O89: 6.065 | P89: 4.54 | Q89: 18.50791667 | R89: 4.54 | S89: 18.50791667 | T89: -3.42 | U89: 6.065
A90: 2024 | B90: 3 | C90: 4 | D90: 16 | E90: 45355.66667 | F90: 7.81 | G90: Valid | H90: 6.05375 | I90: 14.69 | J90: Valid | K90: 18.62833333 | N90: 7.81 | O90: 6.05375 | P90: 14.69 | Q90: 18.62833333 | R90: 14.69 | S90: 18.62833333 | T90: 7.81 | U90: 6.05375
A91: 2024 | B91: 3 | C91: =C67+1 -> 4 | D91: 17 | E91: 45355.70833 | F91: 3.65 | G91: Valid | H91: 6.057083333 | I91: 10.93 | J91: Valid | K91: 18.72458333 | N91: 3.65 | O91: 6.057083333 | P91: 10.93 | Q91: 18.72458333 | R91: 10.93 | S91: 18.72458333 | T91: 3.65 | U91: 6.057083333
A92: 2024 | B92: 3 | C92: 4 | D92: 18 | E92: 45355.75 | F92: 3.65 | G92: Valid | H92: 5.82125 | I92: 16.37 | J92: Valid | K92: 18.82166667 | N92: 3.65 | O92: 5.82125 | P92: 16.37 | Q92: 18.82166667 | R92: 16.37 | S92: 18.82166667 | T92: 3.65 | U92: 5.82125
A93: 2024 | B93: 3 | C93: 4 | D93: 19 | E93: 45355.79167 | F93: 8.9 | G93: Valid | H93: 6.06875 | I93: 25.13 | J93: Valid | K93: 19.53958333 | N93: 8.9 | O93: 6.06875 | P93: 25.13 | Q93: 19.53958333 | R93: 25.13 | S93: 19.53958333 | T93: 8.9 | U93: 6.06875
A94: 2024 | B94: 3 | C94: 4 | D94: 20 | E94: 45355.83333 | F94: 9.19 | G94: Valid | H94: 6.182083333 | I94: 20.13 | J94: Valid | K94: 19.55375 | N94: 9.19 | O94: 6.182083333 | P94: 20.13 | Q94: 19.55375 | R94: 20.13 | S94: 19.55375 | T94: 9.19 | U94: 6.182083333
A95: 2024 | B95: 3 | C95: 4 | D95: 21 | E95: 45355.875 | F95: 4.03 | G95: Valid | H95: 5.935 | I95: 8.94 | J95: Valid | K95: 18.71583333 | N95: 4.03 | O95: 5.935 | P95: 8.94 | Q95: 18.71583333 | R95: 8.94 | S95: 18.71583333 | T95: 4.03 | U95: 5.935
A96: 2024 | B96: 3 | C96: 4 | D96: 22 | E96: 45355.91667 | F96: 1.57 | G96: Valid | H96: 5.884166667 | I96: 5.69 | J96: Valid | K96: 18.34791667 | N96: 1.57 | O96: 5.884166667 | P96: 5.69 | Q96: 18.34791667 | R96: 5.69 | S96: 18.34791667 | T96: 1.57 | U96: 5.884166667
A97: 2024 | B97: 3 | C97: 4 | D97: 23 | E97: 45355.95833 | F97: 5.38 | G97: Valid | H97: 5.870416667 | I97: 8.77 | J97: Valid | K97: 18.2025 | N97: 5.38 | O97: 5.870416667 | P97: 8.77 | Q97: 18.2025 | R97: 8.77 | S97: 18.2025 | T97: 5.38 | U97: 5.870416667
A98: 2024 | B98: 3 | C98: 5 | D98: 0 | E98: 45356 | F98: 6.19 | G98: Valid | H98: 5.88125 | I98: 7.78 | J98: Valid | K98: 18.00625 | N98: 6.19 | O98: 5.88125 | P98: 7.78 | Q98: 18.00625 | R98: 7.78 | S98: 18.00625 | T98: 6.19 | U98: 5.88125
A99: 2024 | B99: 3 | C99: 5 | D99: 1 | E99: 45356.04167 | F99: -3.69 | G99: Valid | H99: 5.390833333 | I99: -2.17 | J99: Valid | K99: 17.35916667 | N99: -3.69 | O99: 5.390833333 | P99: -2.17 | Q99: 17.35916667 | R99: -2.17 | S99: 17.35916667 | T99: -3.69 | U99: 5.390833333
A100: 2024 | B100: 3 | C100: 5 | D100: 2 | E100: 45356.08333 | F100: 3.43 | G100: Valid | H100: 5.33625 | I100: 4.68 | J100: Valid | K100: 17.15958333 | N100: 3.43 | O100: 5.33625 | P100: 4.68 | Q100: 17.15958333 | R100: 4.68 | S100: 17.15958333 | T100: 3.43 | U100: 5.33625
A101: 2024 | B101: 3 | C101: 5 | D101: 3 | E101: 45356.125 | F101: 6.35 | G101: Valid | H101: 5.478333333 | I101: 7.14 | J101: Valid | K101: 17.11833333 | N101: 6.35 | O101: 5.478333333 | P101: 7.14 | Q101: 17.11833333 | R101: 7.14 | S101: 17.11833333 | T101: 6.35 | U101: 5.478333333
A102: 2024 | B102: 3 | C102: 5 | D102: 4 | E102: 45356.16667 | F102: 4.46 | G102: Valid | H102: 5.590416667 | I102: 5.94 | J102: Valid | K102: 17.10916667 | N102: 4.46 | O102: 5.590416667 | P102: 5.94 | Q102: 17.10916667 | R102: 5.94 | S102: 17.10916667 | T102: 4.46 | U102: 5.590416667
A103: 2024 | B103: 3 | C103: 5 | D103: 5 | E103: 45356.20833 | F103: 4.84 | G103: Valid | H103: 5.409166667 | I103: 5.9 | J103: Valid | K103: 14.89125 | N103: 4.84 | O103: 5.409166667 | P103: 5.9 | Q103: 14.89125 | R103: 5.9 | S103: 14.89125 | T103: 4.84 | U103: 5.409166667
A104: 2024 | B104: 3 | C104: 5 | D104: 6 | E104: 45356.25 | F104: 4.07 | G104: Valid | H104: 5.089583333 | I104: 6.48 | J104: Valid | K104: 13.07583333 | N104: 4.07 | O104: 5.089583333 | P104: 6.48 | Q104: 13.07583333 | R104: 6.48 | S104: 13.07583333 | T104: 4.07 | U104: 5.089583333
A105: 2024 | B105: 3 | C105: 5 | D105: 7 | E105: 45356.29167 | F105: 1.34 | G105: Valid | H105: 4.948333333 | I105: 7.53 | J105: Valid | K105: 11.6725 | N105: 1.34 | O105: 4.948333333 | P105: 7.53 | Q105: 11.6725 | R105: 7.53 | S105: 11.6725 | T105: 1.34 | U105: 4.948333333
A106: 2024 | B106: 3 | C106: 5 | D106: 8 | E106: 45356.33333 | F106: 3.08 | G106: Valid | H106: 4.899166667 | I106: 6.9 | J106: Valid | K106: 11.26708333 | N106: 3.08 | O106: 4.899166667 | P106: 6.9 | Q106: 11.26708333 | R106: 6.9 | S106: 11.26708333 | T106: 3.08 | U106: 4.899166667
A107: 2024 | B107: 3 | C107: 5 | D107: 9 | E107: 45356.375 | F107: 7.29 | G107: Valid | H107: 4.944583333 | I107: 13.38 | J107: Valid | K107: 11.01 | N107: 7.29 | O107: 4.944583333 | P107: 13.38 | Q107: 11.01 | R107: 13.38 | S107: 11.01 | T107: 7.29 | U107: 4.944583333
A108: 2024 | B108: 3 | C108: 5 | D108: 10 | E108: 45356.41667 | F108: 9.42 | G108: Valid | H108: 5.007083333 | I108: 11.85 | J108: Valid | K108: 10.81208333 | N108: 9.42 | O108: 5.007083333 | P108: 11.85 | Q108: 10.81208333 | R108: 11.85 | S108: 10.81208333 | T108: 9.42 | U108: 5.007083333
A109: 2024 | B109: 3 | C109: 5 | D109: 11 | E109: 45356.45833 | F109: 4.92 | G109: Valid | H109: 4.850833333 | I109: 6.53 | J109: Valid | K109: 10.22 | N109: 4.92 | O109: 4.850833333 | P109: 6.53 | Q109: 10.22 | R109: 6.53 | S109: 10.22 | T109: 4.92 | U109: 4.850833333
A110: 2024 | B110: 3 | C110: 5 | D110: 12 | E110: 45356.5 | F110: 5.56 | G110: Valid | H110: 4.690416667 | I110: 7.66 | J110: Valid | K110: 9.774583333 | N110: 5.56 | O110: 4.690416667 | P110: 7.66 | Q110: 9.774583333 | R110: 7.66 | S110: 9.774583333 | T110: 5.56 | U110: 4.690416667
A111: 2024 | B111: 3 | C111: 5 | D111: 13 | E111: 45356.54167 | F111: 7.5 | G111: Valid | H111: 4.782916667 | I111: 10.49 | J111: Valid | K111: 9.591666667 | N111: 7.5 | O111: 4.782916667 | P111: 10.49 | Q111: 9.591666667 | R111: 10.49 | S111: 9.591666667 | T111: 7.5 | U111: 4.782916667
A112: 2024 | B112: 3 | C112: 5 | D112: 14 | E112: 45356.58333 | F112: 2.92 | G112: Valid | H112: 4.518333333 | I112: 7.19 | J112: Valid | K112: 9.269583333 | N112: 2.92 | O112: 4.518333333 | P112: 7.19 | Q112: 9.269583333 | R112: 7.19 | S112: 9.269583333 | T112: 2.92 | U112: 4.518333333
A113: 2024 | B113: 3 | C113: 5 | D113: 15 | E113: 45356.625 | F113: 7.47 | G113: Valid | H113: 4.972083333 | I113: 11.63 | J113: Valid | K113: 9.565 | N113: 7.47 | O113: 4.972083333 | P113: 11.63 | Q113: 9.565 | R113: 11.63 | S113: 9.565 | T113: 7.47 | U113: 4.972083333
A114: 2024 | B114: 3 | C114: 5 | D114: 16 | E114: 45356.66667 | F114: -0.15 | G114: Valid | H114: 4.640416667 | I114: 4.73 | J114: Valid | K114: 9.15 | N114: -0.15 | O114: 4.640416667 | P114: 4.73 | Q114: 9.15 | R114: 4.73 | S114: 9.15 | T114: -0.15 | U114: 4.640416667
A115: 2024 | B115: 3 | C115: 5 | D115: 17 | E115: 45356.70833 | F115: 5.35 | G115: Valid | H115: 4.71125 | I115: 11.36 | J115: Valid | K115: 9.167916667 | N115: 5.35 | O115: 4.71125 | P115: 11.36 | Q115: 9.167916667 | R115: 11.36 | S115: 9.167916667 | T115: 5.35 | U115: 4.71125
A116: 2024 | B116: 3 | C116: 5 | D116: 18 | E116: 45356.75 | F116: 7.49 | G116: Valid | H116: 4.87125 | I116: 12.51 | J116: Valid | K116: 9.007083333 | N116: 7.49 | O116: 4.87125 | P116: 12.51 | Q116: 9.007083333 | R116: 12.51 | S116: 9.007083333 | T116: 7.49 | U116: 4.87125
A117: 2024 | B117: 3 | C117: 5 | D117: 19 | E117: 45356.79167 | F117: 6.39 | G117: Valid | H117: 4.766666667 | I117: 15.27 | J117: Valid | K117: 8.59625 | N117: 6.39 | O117: 4.766666667 | P117: 15.27 | Q117: 8.59625 | R117: 15.27 | S117: 8.59625 | T117: 6.39 | U117: 4.766666667
A118: 2024 | B118: 3 | C118: 5 | D118: 20 | E118: 45356.83333 | F118: 6.11 | G118: Valid | H118: 4.638333333 | I118: 11.3 | J118: Valid | K118: 8.228333333 | N118: 6.11 | O118: 4.638333333 | P118: 11.3 | Q118: 8.228333333 | R118: 11.3 | S118: 8.228333333 | T118: 6.11 | U118: 4.638333333
A119: 2024 | B119: 3 | C119: 5 | D119: 21 | E119: 45356.875 | F119: 8.11 | G119: Valid | H119: 4.808333333 | I119: 30.03 | J119: Valid | K119: 9.107083333 | N119: 8.11 | O119: 4.808333333 | P119: 30.03 | Q119: 9.107083333 | R119: 30.03 | S119: 9.107083333 | T119: 8.11 | U119: 4.808333333
A120: 2024 | B120: 3 | C120: 5 | D120: 22 | E120: 45356.91667 | F120: 4.78 | G120: Valid | H120: 4.942083333 | I120: 10.76 | J120: Valid | K120: 9.318333333 | N120: 4.78 | O120: 4.942083333 | P120: 10.76 | Q120: 9.318333333 | R120: 10.76 | S120: 9.318333333 | T120: 4.78 | U120: 4.942083333
A121: 2024 | B121: 3 | C121: 5 | D121: 23 | E121: 45356.95833 | F121: 4.61 | G121: Valid | H121: 4.91 | I121: 16.33 | J121: Valid | K121: 9.633333333 | N121: 4.61 | O121: 4.91 | P121: 16.33 | Q121: 9.633333333 | R121: 16.33 | S121: 9.633333333 | T121: 4.61 | U121: 4.91
A122: 2024 | B122: 3 | C122: 6 | D122: 0 | E122: 45357 | F122: 3.71 | G122: Valid | H122: 4.806666667 | I122: 10.74 | J122: Valid | K122: 9.756666667 | N122: 3.71 | O122: 4.806666667 | P122: 10.74 | Q122: 9.756666667 | R122: 10.74 | S122: 9.756666667 | T122: 3.71 | U122: 4.806666667
A123: 2024 | B123: 3 | C123: 6 | D123: 1 | E123: 45357.04167 | F123: 8.2 | G123: Valid | H123: 5.302083333 | I123: 19.13 | J123: Valid | K123: 10.64416667 | N123: 8.2 | O123: 5.302083333 | P123: 19.13 | Q123: 10.64416667 | R123: 19.13 | S123: 10.64416667 | T123: 8.2 | U123: 5.302083333
A124: 2024 | B124: 3 | C124: 6 | D124: 2 | E124: 45357.08333 | F124: 4.32 | G124: Valid | H124: 5.339166667 | I124: 8.95 | J124: Valid | K124: 10.82208333 | N124: 4.32 | O124: 5.339166667 | P124: 8.95 | Q124: 10.82208333 | R124: 8.95 | S124: 10.82208333 | T124: 4.32 | U124: 5.339166667
A125: 2024 | B125: 3 | C125: 6 | D125: 3 | E125: 45357.125 | F125: 4.09 | G125: Valid | H125: 5.245 | I125: 7.62 | J125: Valid | K125: 10.84208333 | N125: 4.09 | O125: 5.245 | P125: 7.62 | Q125: 10.84208333 | R125: 7.62 | S125: 10.84208333 | T125: 4.09 | U125: 5.245
A126: 2024 | B126: 3 | C126: 6 | D126: 4 | E126: 45357.16667 | F126: 6.69 | G126: Valid | H126: 5.337916667 | I126: 9.32 | J126: Valid | K126: 10.98291667 | N126: 6.69 | O126: 5.337916667 | P126: 9.32 | Q126: 10.98291667 | R126: 9.32 | S126: 10.98291667 | T126: 6.69 | U126: 5.337916667
A127: 2024 | B127: 3 | C127: 6 | D127: 5 | E127: 45357.20833 | F127: 8.02 | G127: Valid | H127: 5.470416667 | I127: 11.41 | J127: Valid | K127: 11.2125 | N127: 8.02 | O127: 5.470416667 | P127: 11.41 | Q127: 11.2125 | R127: 11.41 | S127: 11.2125 | T127: 8.02 | U127: 5.470416667
A128: 2024 | B128: 3 | C128: 6 | D128: 6 | E128: 45357.25 | F128: 16.45 | G128: Valid | H128: 5.98625 | I128: 79.97 | J128: Valid | K128: 14.27458333 | N128: 16.45 | O128: 5.98625 | P128: 79.97 | Q128: 14.27458333 | R128: 79.97 | S128: 14.27458333 | T128: 16.45 | U128: 5.98625
A129: 2024 | B129: 3 | C129: 6 | D129: 7 | E129: 45357.29167 | F129: 22.7 | G129: Valid | H129: 6.87625 | I129: 112.34 | J129: Valid | K129: 18.64166667 | N129: 22.7 | O129: 6.87625 | P129: 112.34 | Q129: 18.64166667 | R129: 112.34 | S129: 18.64166667 | T129: 22.7 | U129: 6.87625
A130: 2024 | B130: 3 | C130: 6 | D130: 8 | E130: 45357.33333 | F130: 9.87 | G130: Valid | H130: 7.159166667 | I130: 33.42 | J130: Valid | K130: 19.74666667 | N130: =IF(G130="Valid", F130, NA()) -> 9.87 | O130: =IF(G130="Valid", H130, NA()) -> 7.159166667 | P130: =IF(J130="Valid", I130, NA()) -> 33.42 | Q130: =IF(J130="Valid", K130, NA()) -> 19.74666667 | R130: 33.42 | S130: 19.74666667 | T130: 9.87 | U130: 7.159166667
A131: 2024 | B131: 3 | C131: 6 | D131: 9 | E131: 45357.375 | F131: 8.08 | G131: Valid | H131: 7.192083333 | I131: 17.71 | J131: Valid | K131: 19.92708333 | N131: 8.08 | O131: 7.192083333 | P131: 17.71 | Q131: 19.92708333 | R131: 17.71 | S131: 19.92708333 | T131: 8.08 | U131: 7.192083333
A132: 2024 | B132: 3 | C132: 6 | D132: =IF(D131=23,0,D131+1) -> 10 | E132: =E131+0.0416666666666666 -> 45357.41667 | F132: 3.86 | G132: Valid | H132: 6.960416667 | I132: 11.19 | J132: Valid | K132: 19.89958333 | N132: 3.86 | O132: 6.960416667 | P132: 11.19 | Q132: 19.89958333 | R132: 11.19 | S132: 19.89958333 | T132: 3.86 | U132: 6.960416667
A133: 2024 | B133: 3 | C133: 6 | D133: 11 | E133: 45357.45833 | F133: 6.46 | G133: Valid | H133: 7.024583333 | I133: 12.89 | J133: Valid | K133: 20.16458333 | N133: 6.46 | O133: 7.024583333 | P133: 12.89 | Q133: 20.16458333 | R133: 12.89 | S133: 20.16458333 | T133: 6.46 | U133: 7.024583333
A134: 2024 | B134: 3 | C134: 6 | D134: 12 | E134: 45357.5 | F134: 6.1 | G134: Valid | H134: 7.047083333 | I134: 12.89 | J134: Valid | K134: 20.3825 | N134: 6.1 | O134: 7.047083333 | P134: 12.89 | Q134: 20.3825 | R134: 12.89 | S134: 20.3825 | T134: 6.1 | U134: 7.047083333
A135: 2024 | B135: 3 | C135: 6 | D135: 13 | E135: 45357.54167 | F135: 5.39 | G135: Valid | H135: 6.959166667 | I135: 10.85 | J135: Valid | K135: 20.3975 | N135: 5.39 | O135: 6.959166667 | P135: 10.85 | Q135: 20.3975 | R135: 10.85 | S135: 20.3975 | T135: 5.39 | U135: 6.959166667
A136: 2024 | B136: 3 | C136: 6 | D136: 14 | E136: 45357.58333 | F136: 6.34 | G136: Valid | H136: 7.101666667 | I136: 12.35 | J136: Valid | K136: 20.6125 | N136: 6.34 | O136: 7.101666667 | P136: 12.35 | Q136: 20.6125 | R136: 12.35 | S136: 20.6125 | T136: 6.34 | U136: 7.101666667
A137: 2024 | B137: 3 | C137: 6 | D137: 15 | E137: 45357.625 | F137: 9.06 | G137: Valid | H137: 7.167916667 | I137: 14.95 | J137: Valid | K137: 20.75083333 | N137: 9.06 | O137: 7.167916667 | P137: 14.95 | Q137: 20.75083333 | R137: 14.95 | S137: 20.75083333 | T137: 9.06 | U137: 7.167916667
A138: 2024 | B138: 3 | C138: 6 | D138: 16 | E138: 45357.66667 | F138: 4.1 | G138: Valid | H138: 7.345 | I138: 13.13 | J138: Valid | K138: 21.10083333 | N138: 4.1 | O138: 7.345 | P138: 13.13 | Q138: 21.10083333 | R138: 13.13 | S138: 21.10083333 | T138: 4.1 | U138: 7.345
A139: 2024 | B139: 3 | C139: 6 | D139: 17 | E139: 45357.70833 | F139: 10.78 | G139: Valid | H139: 7.57125 | I139: 21.4 | J139: Valid | K139: 21.51916667 | N139: 10.78 | O139: 7.57125 | P139: 21.4 | Q139: 21.51916667 | R139: 21.4 | S139: 21.51916667 | T139: 10.78 | U139: 7.57125
A140: 2024 | B140: 3 | C140: 6 | D140: 18 | E140: 45357.75 | F140: 10.2 | G140: Valid | H140: 7.684166667 | I140: 17.64 | J140: Valid | K140: 21.73291667 | N140: 10.2 | O140: 7.684166667 | P140: 17.64 | Q140: 21.73291667 | R140: 17.64 | S140: 21.73291667 | T140: 10.2 | U140: 7.684166667
A141: 2024 | B141: 3 | C141: 6 | D141: 19 | E141: 45357.79167 | F141: 8.39 | G141: Valid | H141: 7.7675 | I141: 18.18 | J141: Valid | K141: 21.85416667 | N141: 8.39 | O141: 7.7675 | P141: 18.18 | Q141: 21.85416667 | R141: 18.18 | S141: 21.85416667 | T141: 8.39 | U141: 7.7675
A142: 2024 | B142: 3 | C142: 6 | D142: 20 | E142: 45357.83333 | F142: 7.28 | G142: Valid | H142: 7.81625 | I142: 16 | J142: Valid | K142: 22.05 | N142: 7.28 | O142: 7.81625 | P142: 16 | Q142: 22.05 | R142: 16 | S142: 22.05 | T142: 7.28 | U142: 7.81625
A143: 2024 | B143: 3 | C143: 6 | D143: 21 | E143: 45357.875 | F143: 5.06 | G143: Valid | H143: 7.689166667 | I143: 10.83 | J143: Valid | K143: 21.25 | N143: 5.06 | O143: 7.689166667 | P143: 10.83 | Q143: 21.25 | R143: 10.83 | S143: 21.25 | T143: 5.06 | U143: 7.689166667
A144: 2024 | B144: 3 | C144: 6 | D144: 22 | E144: 45357.91667 | F144: 4.93 | G144: Valid | H144: 7.695416667 | I144: 29.91 | J144: Valid | K144: 22.04791667 | N144: 4.93 | O144: 7.695416667 | P144: 29.91 | Q144: 22.04791667 | R144: 29.91 | S144: 22.04791667 | T144: 4.93 | U144: 7.695416667
A145: 2024 | B145: 3 | C145: 6 | D145: 23 | E145: 45357.95833 | F145: 3.76 | G145: Valid | H145: 7.66 | I145: 13.84 | J145: Valid | K145: 21.94416667 | N145: 3.76 | O145: 7.66 | P145: 13.84 | Q145: 21.94416667 | R145: 13.84 | S145: 21.94416667 | T145: 3.76 | U145: 7.66
A146: 2024 | B146: 3 | C146: 7 | D146: 0 | E146: 45358 | F146: 7.33 | G146: Valid | H146: 7.810833333 | I146: 14.58 | J146: Valid | K146: 22.10416667 | N146: 7.33 | O146: 7.810833333 | P146: 14.58 | Q146: 22.10416667 | R146: 14.58 | S146: 22.10416667 | T146: 7.33 | U146: 7.810833333
A147: 2024 | B147: 3 | C147: 7 | D147: 1 | E147: 45358.04167 | F147: 2.9 | G147: Valid | H147: 7.59 | I147: 9.27 | J147: Valid | K147: 21.69333333 | N147: 2.9 | O147: 7.59 | P147: 9.27 | Q147: 21.69333333 | R147: 9.27 | S147: 21.69333333 | T147: 2.9 | U147: 7.59
A148: 2024 | B148: 3 | C148: 7 | D148: 2 | E148: 45358.08333 | F148: 5.46 | G148: Valid | H148: 7.6375 | I148: 11.48 | J148: Valid | K148: 21.79875 | N148: 5.46 | O148: 7.6375 | P148: 11.48 | Q148: 21.79875 | R148: 11.48 | S148: 21.79875 | T148: 5.46 | U148: 7.6375
A149: 2024 | B149: 3 | C149: 7 | D149: 3 | E149: 45358.125 | F149: 5.51 | G149: Valid | H149: 7.696666667 | I149: 10.38 | J149: Valid | K149: 21.91375 | N149: 5.51 | O149: 7.696666667 | P149: 10.38 | Q149: 21.91375 | R149: 10.38 | S149: 21.91375 | T149: 5.51 | U149: 7.696666667
A150: 2024 | B150: 3 | C150: 7 | D150: 4 | E150: 45358.16667 | F150: 8.12 | G150: Valid | H150: 7.75625 | I150: 32.48 | J150: Valid | K150: 22.87875 | N150: 8.12 | O150: 7.75625 | P150: 32.48 | Q150: 22.87875 | R150: 32.48 | S150: 22.87875 | T150: 8.12 | U150: 7.75625
A151: 2024 | B151: 3 | C151: 7 | D151: 5 | E151: 45358.20833 | F151: 4.31 | G151: Valid | H151: 7.601666667 | I151: 11.18 | J151: Valid | K151: 22.86916667 | N151: 4.31 | O151: 7.601666667 | P151: 11.18 | Q151: 22.86916667 | R151: 11.18 | S151: 22.86916667 | T151: 4.31 | U151: 7.601666667
A152: 2024 | B152: 3 | C152: 7 | D152: 6 | E152: 45358.25 | F152: 13.78 | G152: Valid | H152: 7.490416667 | I152: 81.66 | J152: Valid | K152: 22.93958333 | N152: 13.78 | O152: 7.490416667 | P152: 81.66 | Q152: 22.93958333 | R152: 81.66 | S152: 22.93958333 | T152: 13.78 | U152: 7.490416667
A153: 2024 | B153: 3 | C153: 7 | D153: 7 | E153: 45358.29167 | F153: 10.47 | G153: Valid | H153: 6.980833333 | I153: 39.21 | J153: Valid | K153: 19.8925 | N153: 10.47 | O153: 6.980833333 | P153: 39.21 | Q153: 19.8925 | R153: 39.21 | S153: 19.8925 | T153: 10.47 | U153: 6.980833333
A154: 2024 | B154: 3 | C154: 7 | D154: 8 | E154: 45358.33333 | F154: 10.46 | G154: Valid | H154: 7.005416667 | I154: 31.83 | J154: Valid | K154: 19.82625 | N154: 10.46 | O154: 7.005416667 | P154: 31.83 | Q154: 19.82625 | R154: 31.83 | S154: 19.82625 | T154: 10.46 | U154: 7.005416667
A155: 2024 | B155: 3 | C155: =C131+1 -> 7 | D155: 9 | E155: 45358.375 | F155: 6.87 | G155: Valid | H155: 6.955 | I155: 13.81 | J155: Valid | K155: 19.66375 | N155: 6.87 | O155: 6.955 | P155: 13.81 | Q155: 19.66375 | R155: 13.81 | S155: 19.66375 | T155: 6.87 | U155: 6.955
A156: 2024 | B156: 3 | C156: 7 | D156: 10 | E156: 45358.41667 | F156: 12.84 | G156: Valid | H156: 7.329166667 | I156: 26.74 | J156: Valid | K156: 20.31166667 | N156: 12.84 | O156: 7.329166667 | P156: 26.74 | Q156: 20.31166667 | R156: 26.74 | S156: 20.31166667 | T156: 12.84 | U156: 7.329166667
A157: 2024 | B157: 3 | C157: 7 | D157: 11 | E157: 45358.45833 | F157: 9.93 | G157: Valid | H157: 7.47375 | I157: 23.79 | J157: Valid | K157: 20.76583333 | N157: 9.93 | O157: 7.47375 | P157: 23.79 | Q157: 20.76583333 | R157: 23.79 | S157: 20.76583333 | T157: 9.93 | U157: 7.47375
A158: 2024 | B158: 3 | C158: 7 | D158: 12 | E158: 45358.5 | F158: 4.13 | G158: Valid | H158: 7.391666667 | I158: 15.18 | J158: Valid | K158: 20.86125 | N158: 4.13 | O158: 7.391666667 | P158: 15.18 | Q158: 20.86125 | R158: 15.18 | S158: 20.86125 | T158: 4.13 | U158: 7.391666667
A159: 2024 | B159: 3 | C159: 7 | D159: 13 | E159: 45358.54167 | F159: 8.21 | G159: Valid | H159: 7.509166667 | I159: 16.71 | J159: Valid | K159: 21.10541667 | N159: 8.21 | O159: 7.509166667 | P159: 16.71 | Q159: 21.10541667 | R159: 16.71 | S159: 21.10541667 | T159: 8.21 | U159: 7.509166667
A160: 2024 | B160: 3 | C160: 7 | D160: 14 | E160: 45358.58333 | F160: 9.59 | G160: Valid | H160: 7.644583333 | I160: 20.59 | J160: Valid | K160: 21.44875 | N160: 9.59 | O160: 7.644583333 | P160: 20.59 | Q160: 21.44875 | R160: 20.59 | S160: 21.44875 | T160: 9.59 | U160: 7.644583333
A161: 2024 | B161: 3 | C161: 7 | D161: 15 | E161: 45358.625 | F161: 10.49 | G161: Valid | H161: 7.704166667 | I161: 19.73 | J161: Valid | K161: 21.64791667 | N161: 10.49 | O161: 7.704166667 | P161: 19.73 | Q161: 21.64791667 | R161: 19.73 | S161: 21.64791667 | T161: 10.49 | U161: 7.704166667
A162: 2024 | B162: 3 | C162: 7 | D162: 16 | E162: 45358.66667 | F162: 8.84 | G162: Valid | H162: 7.901666667 | I162: 19.91 | J162: Valid | K162: 21.93041667 | N162: 8.84 | O162: 7.901666667 | P162: 19.91 | Q162: 21.93041667 | R162: 19.91 | S162: 21.93041667 | T162: 8.84 | U162: 7.901666667
A163: 2024 | B163: 3 | C163: 7 | D163: 17 | E163: 45358.70833 | F163: 9.15 | G163: Valid | H163: 7.83375 | I163: 24.68 | J163: Valid | K163: 22.06708333 | N163: 9.15 | O163: 7.83375 | P163: 24.68 | Q163: 22.06708333 | R163: 24.68 | S163: 22.06708333 | T163: 9.15 | U163: 7.83375
A164: 2024 | B164: 3 | C164: 7 | D164: 18 | E164: 45358.75 | F164: 9.27 | G164: Valid | H164: 7.795 | I164: 20.88 | J164: Valid | K164: 22.20208333 | N164: 9.27 | O164: 7.795 | P164: 20.88 | Q164: 22.20208333 | R164: 20.88 | S164: 22.20208333 | T164: 9.27 | U164: 7.795
A165: 2024 | B165: 3 | C165: 7 | D165: 19 | E165: 45358.79167 | F165: 6.17 | G165: Valid | H165: 7.7025 | I165: 19.59 | J165: Valid | K165: 22.26083333 | N165: 6.17 | O165: 7.7025 | P165: 19.59 | Q165: 22.26083333 | R165: 19.59 | S165: 22.26083333 | T165: 6.17 | U165: 7.7025
A166: 2024 | B166: 3 | C166: 7 | D166: 20 | E166: 45358.83333 | F166: 7.5 | G166: Valid | H166: 7.711666667 | I166: 14.63 | J166: Valid | K166: 22.20375 | N166: 7.5 | O166: 7.711666667 | P166: 14.63 | Q166: 22.20375 | R166: 14.63 | S166: 22.20375 | T166: 7.5 | U166: 7.711666667
A167: 2024 | B167: 3 | C167: 7 | D167: 21 | E167: 45358.875 | F167: 8.91 | G167: Valid | H167: 7.872083333 | I167: 16.63 | J167: Valid | K167: 22.44541667 | N167: 8.91 | O167: 7.872083333 | P167: 16.63 | Q167: 22.44541667 | R167: 16.63 | S167: 22.44541667 | T167: 8.91 | U167: 7.872083333
A168: 2024 | B168: 3 | C168: 7 | D168: 22 | E168: 45358.91667 | F168: 13.75 | G168: Valid | H168: 8.239583333 | I168: 24.49 | J168: Valid | K168: 22.21958333 | N168: 13.75 | O168: 8.239583333 | P168: 24.49 | Q168: 22.21958333 | R168: 24.49 | S168: 22.21958333 | T168: 13.75 | U168: 8.239583333
A169: 2024 | B169: 3 | C169: 7 | D169: 23 | E169: 45358.95833 | F169: 6.36 | G169: Valid | H169: 8.347916667 | I169: 12.88 | J169: Valid | K169: 22.17958333 | N169: 6.36 | O169: 8.347916667 | P169: 12.88 | Q169: 22.17958333 | R169: 12.88 | S169: 22.17958333 | T169: 6.36 | U169: 8.347916667
A170: 2024 | B170: 3 | C170: 8 | D170: 0 | E170: 45359 | F170: 6.86 | G170: Valid | H170: 8.328333333 | I170: 12.8 | J170: Valid | K170: 22.10541667 | N170: 6.86 | O170: 8.328333333 | P170: 12.8 | Q170: 22.10541667 | R170: 12.8 | S170: 22.10541667 | T170: 6.86 | U170: 8.328333333
A171: 2024 | B171: 3 | C171: 8 | D171: 1 | E171: 45359.04167 | F171: 3.24 | G171: Valid | H171: 8.3425 | I171: 8.8 | J171: Valid | K171: 22.08583333 | N171: 3.24 | O171: 8.3425 | P171: 8.8 | Q171: 22.08583333 | R171: 8.8 | S171: 22.08583333 | T171: 3.24 | U171: 8.3425
A172: 2024 | B172: 3 | C172: 8 | D172: 2 | E172: 45359.08333 | F172: 6.52 | G172: Valid | H172: 8.386666667 | I172: 11.21 | J172: Valid | K172: 22.07458333 | N172: 6.52 | O172: 8.386666667 | P172: 11.21 | Q172: 22.07458333 | R172: 11.21 | S172: 22.07458333 | T172: 6.52 | U172: 8.386666667
A173: 2024 | B173: 3 | C173: 8 | D173: 3 | E173: 45359.125 | F173: 5.07 | G173: Valid | H173: 8.368333333 | I173: 9.75 | J173: Valid | K173: 22.04833333 | N173: 5.07 | O173: 8.368333333 | P173: 9.75 | Q173: 22.04833333 | R173: 9.75 | S173: 22.04833333 | T173: 5.07 | U173: 8.368333333
A174: 2024 | B174: 3 | C174: 8 | D174: 4 | E174: 45359.16667 | F174: 2.88 | G174: Valid | H174: 8.15 | I174: 5.94 | J174: Valid | K174: 20.9425 | N174: 2.88 | O174: 8.15 | P174: 5.94 | Q174: 20.9425 | R174: 5.94 | S174: 20.9425 | T174: 2.88 | U174: 8.15
A175: 2024 | B175: 3 | C175: 8 | D175: 5 | E175: 45359.20833 | F175: 1.68 | G175: Valid | H175: 8.040416667 | I175: 6.09 | J175: Valid | K175: 20.73041667 | N175: 1.68 | O175: 8.040416667 | P175: 6.09 | Q175: 20.73041667 | R175: 6.09 | S175: 20.73041667 | T175: 1.68 | U175: 8.040416667
A176: 2024 | B176: 3 | C176: 8 | D176: 6 | E176: 45359.25 | F176: 6.44 | G176: Valid | H176: 7.734583333 | I176: 22.06 | J176: Valid | K176: 18.24708333 | N176: 6.44 | O176: 7.734583333 | P176: 22.06 | Q176: 18.24708333 | R176: 22.06 | S176: 18.24708333 | T176: 6.44 | U176: 7.734583333
A177: 2024 | B177: 3 | C177: 8 | D177: 7 | E177: 45359.29167 | F177: 5.05 | G177: Valid | H177: 7.50875 | I177: 31.62 | J177: Valid | K177: 17.93083333 | N177: 5.05 | O177: 7.50875 | P177: 31.62 | Q177: 17.93083333 | R177: 31.62 | S177: 17.93083333 | T177: 5.05 | U177: 7.50875
A178: 2024 | B178: 3 | C178: 8 | D178: 8 | E178: 45359.33333 | F178: 4.04 | G178: Valid | H178: 7.24125 | I178: 8.41 | J178: Valid | K178: 16.955 | N178: 4.04 | O178: 7.24125 | P178: 8.41 | Q178: 16.955 | R178: 8.41 | S178: 16.955 | T178: 4.04 | U178: 7.24125
A179: 2024 | B179: 3 | C179: 8 | D179: 9 | E179: 45359.375 | F179: 6.8 | G179: Valid | H179: 7.238333333 | I179: 11.03 | J179: Valid | K179: 16.83916667 | N179: 6.8 | O179: 7.238333333 | P179: 11.03 | Q179: 16.83916667 | R179: 11.03 | S179: 16.83916667 | T179: 6.8 | U179: 7.238333333
A180: 2024 | B180: 3 | C180: 8 | D180: 10 | E180: 45359.41667 | F180: 5.39 | G180: Valid | H180: 6.927916667 | I180: 8.44 | J180: Valid | K180: 16.07666667 | N180: 5.39 | O180: 6.927916667 | P180: 8.44 | Q180: 16.07666667 | R180: 8.44 | S180: 16.07666667 | T180: 5.39 | U180: 6.927916667
A181: 2024 | B181: 3 | C181: 8 | D181: 11 | E181: 45359.45833 | F181: 3.99 | G181: Valid | H181: 6.680416667 | I181: 7.7 | J181: Valid | K181: 15.40625 | N181: 3.99 | O181: 6.680416667 | P181: 7.7 | Q181: 15.40625 | R181: 7.7 | S181: 15.40625 | T181: 3.99 | U181: 6.680416667
A182: 2024 | B182: 3 | C182: 8 | D182: 12 | E182: 45359.5 | F182: 5.98 | G182: Valid | H182: 6.7575 | I182: 9.3 | J182: Valid | K182: 15.16125 | N182: 5.98 | O182: 6.7575 | P182: 9.3 | Q182: 15.16125 | R182: 9.3 | S182: 15.16125 | T182: 5.98 | U182: 6.7575
A183: 2024 | B183: 3 | C183: 8 | D183: 13 | E183: 45359.54167 | F183: 2.83 | G183: Valid | H183: 6.533333333 | I183: 7.62 | J183: Valid | K183: 14.7825 | N183: 2.83 | O183: 6.533333333 | P183: 7.62 | Q183: 14.7825 | R183: 7.62 | S183: 14.7825 | T183: 2.83 | U183: 6.533333333
A184: 2024 | B184: 3 | C184: 8 | D184: 14 | E184: 45359.58333 | F184: 3.28 | G184: Valid | H184: 6.270416667 | I184: 7.24 | J184: Valid | K184: 14.22625 | N184: 3.28 | O184: 6.270416667 | P184: 7.24 | Q184: 14.22625 | R184: 7.24 | S184: 14.22625 | T184: 3.28 | U184: 6.270416667
A185: 2024 | B185: 3 | C185: 8 | D185: 15 | E185: 45359.625 | F185: -1.14 | G185: Valid | H185: 5.785833333 | I185: 4.29 | J185: Valid | K185: 13.58291667 | N185: -1.14 | O185: 5.785833333 | P185: 4.29 | Q185: 13.58291667 | R185: 4.29 | S185: 13.58291667 | T185: -1.14 | U185: 5.785833333
A186: 2024 | B186: 3 | C186: 8 | D186: 16 | E186: 45359.66667 | F186: 3.74 | G186: Valid | H186: 5.573333333 | I186: 8.8 | J186: Valid | K186: 13.12 | N186: 3.74 | O186: 5.573333333 | P186: 8.8 | Q186: 13.12 | R186: 8.8 | S186: 13.12 | T186: 3.74 | U186: 5.573333333
A187: 2024 | B187: 3 | C187: 8 | D187: 17 | E187: 45359.70833 | F187: 6.81 | G187: Valid | H187: 5.475833333 | I187: 12.98 | J187: Valid | K187: 12.6325 | N187: 6.81 | O187: 5.475833333 | P187: 12.98 | Q187: 12.6325 | R187: 12.98 | S187: 12.6325 | T187: 6.81 | U187: 5.475833333
A188: 2024 | B188: 3 | C188: 8 | D188: 18 | E188: 45359.75 | F188: 2.59 | G188: Valid | H188: 5.1975 | I188: 19.82 | J188: Valid | K188: 12.58833333 | N188: 2.59 | O188: 5.1975 | P188: 19.82 | Q188: 12.58833333 | R188: 19.82 | S188: 12.58833333 | T188: 2.59 | U188: 5.1975
A189: 2024 | B189: 3 | C189: 8 | D189: 19 | E189: 45359.79167 | F189: 5.35 | G189: Valid | H189: 5.163333333 | I189: 9.73 | J189: Valid | K189: 12.1775 | N189: 5.35 | O189: 5.163333333 | P189: 9.73 | Q189: 12.1775 | R189: 9.73 | S189: 12.1775 | T189: 5.35 | U189: 5.163333333
A190: 2024 | B190: 3 | C190: 8 | D190: 20 | E190: 45359.83333 | F190: 4.59 | G190: Valid | H190: 5.042083333 | I190: 17.85 | J190: Valid | K190: 12.31166667 | N190: 4.59 | O190: 5.042083333 | P190: 17.85 | Q190: 12.31166667 | R190: 17.85 | S190: 12.31166667 | T190: 4.59 | U190: 5.042083333
A191: 2024 | B191: 3 | C191: 8 | D191: 21 | E191: 45359.875 | F191: 5.98 | G191: Valid | H191: 4.92 | I191: 10.16 | J191: Valid | K191: 12.04208333 | N191: 5.98 | O191: 4.92 | P191: 10.16 | Q191: 12.04208333 | R191: 10.16 | S191: 12.04208333 | T191: 5.98 | U191: 4.92
A192: 2024 | B192: 3 | C192: 8 | D192: 22 | E192: 45359.91667 | F192: 7.48 | G192: Valid | H192: 4.65875 | I192: 11.67 | J192: Valid | K192: 11.50791667 | N192: 7.48 | O192: 4.65875 | P192: 11.67 | Q192: 11.50791667 | R192: 11.67 | S192: 11.50791667 | T192: 7.48 | U192: 4.65875
A193: 2024 | B193: 3 | C193: 8 | D193: 23 | E193: 45359.95833 | F193: 1.94 | G193: Valid | H193: 4.474583333 | I193: 6.27 | J193: Valid | K193: 11.2325 | N193: 1.94 | O193: 4.474583333 | P193: 6.27 | Q193: 11.2325 | R193: 6.27 | S193: 11.2325 | T193: 1.94 | U193: 4.474583333
A194: 2024 | B194: 3 | C194: 9 | D194: 0 | E194: 45360 | F194: 5.16 | G194: Valid | H194: 4.40375 | I194: 9.66 | J194: Valid | K194: 11.10166667 | N194: =IF(G194="Valid", F194, NA()) -> 5.16 | O194: =IF(G194="Valid", H194, NA()) -> 4.40375 | P194: =IF(J194="Valid", I194, NA()) -> 9.66 | Q194: =IF(J194="Valid", K194, NA()) -> 11.10166667 | R194: 9.66 | S194: 11.10166667 | T194: 5.16 | U194: 4.40375
A195: 2024 | B195: 3 | C195: 9 | D195: 1 | E195: 45360.04167 | F195: 4.09 | G195: Valid | H195: 4.439166667 | I195: 8.32 | J195: Valid | K195: 11.08166667 | N195: 4.09 | O195: 4.439166667 | P195: 8.32 | Q195: 11.08166667 | R195: 8.32 | S195: 11.08166667 | T195: 4.09 | U195: 4.439166667
A196: 2024 | B196: 3 | C196: 9 | D196: =IF(D195=23,0,D195+1) -> 2 | E196: =E195+0.0416666666666666 -> 45360.08333 | F196: 2.81 | G196: Valid | H196: 4.284583333 | I196: 8.19 | J196: Valid | K196: 10.95583333 | N196: 2.81 | O196: 4.284583333 | P196: 8.19 | Q196: 10.95583333 | R196: 8.19 | S196: 10.95583333 | T196: 2.81 | U196: 4.284583333
A197: 2024 | B197: 3 | C197: 9 | D197: 3 | E197: 45360.125 | F197: 5.3 | G197: Valid | H197: 4.294166667 | I197: 9.4 | J197: Valid | K197: 10.94125 | N197: 5.3 | O197: 4.294166667 | P197: 9.4 | Q197: 10.94125 | R197: 9.4 | S197: 10.94125 | T197: 5.3 | U197: 4.294166667
A198: 2024 | B198: 3 | C198: 9 | D198: 4 | E198: 45360.16667 | F198: 5.94 | G198: Valid | H198: 4.421666667 | I198: 12.51 | J198: Valid | K198: 11.215 | N198: 5.94 | O198: 4.421666667 | P198: 12.51 | Q198: 11.215 | R198: 12.51 | S198: 11.215 | T198: 5.94 | U198: 4.421666667
A199: 2024 | B199: 3 | C199: 9 | D199: 5 | E199: 45360.20833 | F199: 1.5 | G199: Valid | H199: 4.414166667 | I199: 5.84 | J199: Valid | K199: 11.20458333 | N199: 1.5 | O199: 4.414166667 | P199: 5.84 | Q199: 11.20458333 | R199: 5.84 | S199: 11.20458333 | T199: 1.5 | U199: 4.414166667
A200: 2024 | B200: 3 | C200: 9 | D200: 6 | E200: 45360.25 | F200: 3.65 | G200: Valid | H200: 4.297916667 | I200: 8.29 | J200: Valid | K200: 10.63083333 | N200: 3.65 | O200: 4.297916667 | P200: 8.29 | Q200: 10.63083333 | R200: 8.29 | S200: 10.63083333 | T200: 3.65 | U200: 4.297916667
... 545 more rows
